fUSD/lending_fUSD_20240213
["ID","MTS","AMOUNT","RATE_DAILY","PERIOD"]
[313916961,1707821449008,-150.0,0.00029007,2]
[313916962,1707821449018,-150.0,0.00029007,2]
[313916963,1707821449027,-1062.26,0.00029009,2]
[313916964,1707821449038,-150.0,0.00029013,2]
[313916965,1707821449047,-150.0,0.00029013,2]
[313916966,1707821449057,-150.0,0.00029014,2]
[313916967,1707821449066,-150.0,0.00029015,2]
[313916968,1707821449075,-150.0,0.00029018,2]
[313916969,1707821449085,-150.0,0.00029024,2]
[313916970,1707821449095,-150.0,0.00029026,2]
[313916971,1707821449105,-150.0,0.00029028,2]
[313916972,1707821449114,-500.0,0.00029029,2]
[313916973,1707821449124,-500.0,0.00029029,2]
[313916974,1707821449134,-500.0,0.00029029,2]
[313916975,1707821449143,-500.0,0.00029029,2]
[313916976,1707821449153,-500.0,0.00029029,2]
[313916977,1707821449162,-500.0,0.00029029,2]
[313916978,1707821449172,-500.0,0.00029029,2]
[313916979,1707821449181,-500.0,0.00029029,2]
[313916980,1707821449190,-500.0,0.00029029,2]
[313916981,1707821449201,-500.0,0.00029029,2]
[313916982,1707821449210,-500.0,0.00029029,2]
[313916983,1707821449220,-500.0,0.00029029,2]
[313916984,1707821449229,-500.0,0.00029029,2]
[313916985,1707821449238,-500.0,0.00029029,2]
[313916986,1707821449248,-500.0,0.00029029,2]
[313916987,1707821449257,-500.0,0.00029029,2]
[313916988,1707821449267,-500.0,0.00029029,2]
[313916989,1707821449276,-500.0,0.00029029,2]
[313916990,1707821449287,-500.0,0.00029029,2]
[313916991,1707821449298,-500.0,0.00029029,2]
[313916992,1707821449308,-500.0,0.00029029,2]
[313916993,1707821449318,-500.0,0.00029029,2]
[313916994,1707821449328,-500.0,0.00029029,2]
[313916995,1707821449338,-500.0,0.00029029,2]
[313916996,1707821449347,-500.0,0.00029029,2]
[313916997,1707821449357,-500.0,0.00029029,2]
[313916998,1707821449366,-500.0,0.00029029,2]
[313916999,1707821449376,-500.0,0.00029029,2]
[313917000,1707821449386,-500.0,0.00029029,2]
[313917001,1707821449396,-113.80736371,0.00029029,2]
[313917002,1707821449693,-386.19263629,0.00029029,2]
[313917003,1707821449703,-500.0,0.00029029,2]
[313917004,1707821449712,-500.0,0.00029029,2]
[313917005,1707821449722,-500.0,0.00029029,2]
[313917006,1707821449731,-500.0,0.00029029,2]
[313917007,1707821449742,-70.90361308,0.00029029,2]
[313917008,1707821449757,-429.09638692,0.00029029,2]
[313917009,1707821449766,-500.0,0.00029029,2]
[313917010,1707821449776,-392.76826308,0.00029029,2]
[313917011,1707821449790,-107.23173692,0.00029029,2]
[313917012,1707821449800,-500.0,0.00029029,2]
[313917013,1707821449809,-500.0,0.00029029,2]
[313917014,1707821449819,-121.65109412,0.00029029,2]
[313917015,1707821449831,-378.34890588,0.00029029,2]
[313917016,1707821449841,-500.0,0.00029029,2]
[313917017,1707821449851,-500.0,0.00029029,2]
[313917018,1707821449861,-500.0,0.00029029,2]
[313917019,1707821449870,-500.0,0.00029029,2]
[313917020,1707821449880,-500.0,0.00029029,2]
[313917021,1707821449890,-500.0,0.00029029,2]
[313917022,1707821449899,-500.0,0.00029029,2]
[313917023,1707821449909,-500.0,0.00029029,2]
[313917024,1707821449919,-500.0,0.00029029,2]
[313917025,1707821449929,-130.01391006,0.00029029,2]
[313917026,1707821449942,-369.98608994,0.00029029,2]
[313917027,1707821449951,-500.0,0.00029029,2]
[313917028,1707821449960,-500.0,0.00029029,2]
[313917029,1707821449970,-500.0,0.00029029,2]
[313917030,1707821449979,-191.15394264,0.00029029,2]
[313917031,1707821449996,-308.84605736,0.00029029,2]
[313917032,1707821450006,-500.0,0.00029029,2]
[313917033,1707821450016,-101.18510711,0.00029029,2]
[313917034,1707821450029,-398.81489289,0.00029029,2]
[313917035,1707821450040,-500.0,0.00029029,2]
[313917036,1707821450050,-500.0,0.00029029,2]
[313917037,1707821450060,-500.0,0.00029029,2]
[313917038,1707821450070,-500.0,0.00029029,2]
[313917039,1707821450080,-268.98710711,0.00029029,2]
[313917040,1707821450093,-231.01289289,0.00029029,2]
[313917041,1707821450103,-500.0,0.00029029,2]
[313917042,1707821450112,-500.0,0.00029029,2]
[313917043,1707821450122,-500.0,0.00029029,2]
[313917044,1707821450131,-500.0,0.00029029,2]
[313917045,1707821450141,-500.0,0.00029029,2]
[313917046,1707821450151,-250.91930881,0.00029029,2]
[313917047,1707821450164,-249.08069119,0.00029029,2]
[313917048,1707821450175,-500.0,0.00029029,2]
[313917049,1707821450185,-500.0,0.00029029,2]
[313917050,1707821450195,-500.0,0.00029029,2]
[313917051,1707821450205,-500.0,0.00029029,2]
[313917052,1707821450215,-500.0,0.00029029,2]
[313917053,1707821450225,-500.0,0.00029029,2]
[313917054,1707821450236,-500.0,0.00029029,2]
[313917055,1707821450245,-500.0,0.00029029,2]
[313917056,1707821450255,-500.0,0.00029029,2]
[313917057,1707821450266,-500.0,0.00029029,2]
[313917058,1707821450275,-500.0,0.00029029,2]
[313917059,1707821450286,-500.0,0.00029029,2]
[313917060,1707821450296,-190.72946871,0.00029029,2]
[313917061,1707821450310,-309.27053129,0.00029029,2]
[313917062,1707821450320,-500.0,0.00029029,2]
[313917063,1707821450331,-291.49163453,0.00029029,2]
[313917064,1707821450587,-551.5937854,0.00028767,2]
[313917065,1707821450597,-208.50836547,0.00029029,2]
[313917066,1707821450607,-500.0,0.00029029,2]
[313917067,1707821450617,-60.38929469,0.00029029,2]
[313917068,1707821450629,-439.61070531,0.00029029,2]
[313917069,1707821450650,-500.0,0.00029029,2]
[313917070,1707821450666,-500.0,0.00029029,2]
[313917071,1707821450678,-96.91424028,0.00029029,2]
[313917072,1707821450693,-403.08575972,0.00029029,2]
[313917073,1707821450706,-500.0,0.00029029,2]
[313917074,1707821450718,-500.0,0.00029029,2]
[313917075,1707821450729,-500.0,0.00029029,2]
[313917076,1707821450741,-500.0,0.00029029,2]
[313917077,1707821450752,-500.0,0.00029029,2]
[313917078,1707821450762,-500.0,0.00029029,2]
[313917079,1707821450772,-500.0,0.00029029,2]
[313917080,1707821450785,-500.0,0.00029029,2]
[313917081,1707821450796,-500.0,0.00029029,2]
[313917082,1707821450808,-500.0,0.00029029,2]
[313917083,1707821450819,-296.91424138,0.00029029,2]
[313917084,1707821450838,-203.08575862,0.00029029,2]
[313917085,1707821451121,-500.0,0.00029029,2]
[313917086,1707821451131,-259.71353201,0.00029029,2]
[313917087,1707821451140,-500.0,0.00029029,2]
[313917088,1707821451150,-150.0,0.00029029,2]
[313917089,1707821451160,-196.34508082,0.0002903,2]
[313917090,1707821451169,-1077.19191958,0.0002903,2]
[313917091,1707821451179,-212.28989124,0.0002903,15]
[313917092,1707821451189,-195.94978448,0.0002903,2]
[313917093,1707821451198,-1883.62530784,0.0002903,2]
[313917094,1707821451208,-158.33458605,0.0002903,2]
[313917095,1707821451217,-150.0,0.00029031,2]
[313917096,1707821451227,-150.0,0.00029034,2]
[313917097,1707821451237,-155.2397612,0.00029039,2]
[313917098,1707821451247,-353.91577987,0.00029039,2]
[313917099,1707821451257,-730.34092815,0.00029039,2]
[313917100,1707821451269,-197.74431418,0.00029039,2]
[313917101,1707821451279,-450.0,0.00029039,2]
[313917102,1707821451290,-500.0,0.00029039,2]
[313917103,1707821451300,-500.0,0.00029039,2]
[313917104,1707821451310,-500.0,0.00029039,2]
[313917105,1707821451320,-500.0,0.00029039,2]
[313917106,1707821451330,-500.0,0.00029039,2]
[313917107,1707821451340,-450.0,0.00029039,2]
[313917108,1707821451350,-500.0,0.00029039,2]
[313917109,1707821451359,-500.0,0.00029039,2]
[313917110,1707821451369,-500.0,0.00029039,2]
[313917111,1707821451379,-500.0,0.00029039,2]
[313917112,1707821451389,-500.0,0.00029039,2]
[313917113,1707821451399,-500.0,0.00029039,2]
[313917114,1707821451409,-500.0,0.00029039,2]
[313917115,1707821451418,-500.0,0.00029039,2]
[313917116,1707821451428,-500.0,0.00029039,2]
[313917117,1707821451438,-500.0,0.00029039,2]
[313917118,1707821451448,-500.0,0.00029039,2]
[313917119,1707821451458,-500.0,0.00029039,2]
[313917120,1707821451468,-500.0,0.00029039,2]
[313917121,1707821451478,-500.0,0.00029039,2]
[313917122,1707821451490,-500.0,0.00029039,2]
[313917123,1707821451501,-371.93182949,0.00029039,2]
[313917124,1707821451519,-128.06817051,0.00029039,2]
[313917125,1707821451529,-471.21162157,0.00029039,2]
[313917126,1707821451546,-28.78837843,0.00029039,2]
[313917127,1707821451556,-331.66345705,0.00029039,2]
[313917128,1707821451606,-168.33654295,0.00029039,2]
[313917129,1707821451616,-500.0,0.00029039,2]
[313917130,1707821451627,-500.0,0.00029039,2]
[313917131,1707821451637,-500.0,0.00029039,2]
[313917132,1707821451646,-500.0,0.00029039,2]
[313917133,1707821451656,-500.0,0.00029039,2]
[313917134,1707821451669,-500.0,0.00029039,2]
[313917135,1707821451678,-500.0,0.00029039,2]
[313917136,1707821451688,-500.0,0.00029039,2]
[313917137,1707821451697,-500.0,0.00029039,2]
[313917138,1707821451707,-500.0,0.00029039,2]
[313917139,1707821451716,-500.0,0.00029039,2]
[313917140,1707821451726,-500.0,0.00029039,2]
[313917141,1707821451735,-500.0,0.00029039,2]
[313917142,1707821451746,-500.0,0.00029039,2]
[313917143,1707821451755,-500.0,0.00029039,2]
[313917144,1707821451765,-500.0,0.00029039,2]
[313917145,1707821451775,-500.0,0.00029039,2]
[313917146,1707821451785,-500.0,0.00029039,2]
[313917147,1707821451795,-500.0,0.00029039,2]
[313917148,1707821451804,-500.0,0.00029039,2]
[313917149,1707821451814,-483.26113306,0.00029039,2]
[313917150,1707821451831,-16.73886694,0.00029039,2]
[313917151,1707821451841,-500.0,0.00029039,2]
[313917152,1707821451851,-500.0,0.00029039,2]
[313917153,1707821451860,-500.0,0.00029039,2]
[313917154,1707821451870,-500.0,0.00029039,2]
[313917155,1707821451879,-241.37877568,0.00029039,2]
[313917156,1707821451892,-258.62122432,0.00029039,2]
[313917157,1707821451902,-500.0,0.00029039,2]
[313917158,1707821451912,-500.0,0.00029039,2]
[313917159,1707821451922,-500.0,0.00029039,2]
[313917160,1707821451931,-348.26355692,0.00029039,2]
[313917161,1707821465122,3021.0,0.0002199,2]
[313917162,1707821470420,368050.65424497,0.00023,2]
[313917163,1707821470447,78435.7170472,0.00023,2]
[313917164,1707821470475,1904192.99138062,0.00023,2]
[313917170,1707821632665,282483.62846511,0.00023,2]
[313917215,1707822632039,-156.10743605,0.00024792,2]
[313917216,1707822632052,-160.0,0.00024793,2]
[313917217,1707822632063,-875.11,0.00024999,2]
[313917218,1707822632073,-160.0,0.00026437,2]
[313917219,1707822632083,-250.0,0.00026806,2]
[313917220,1707822632093,-1000.0,0.00026881,2]
[313917221,1707822632103,-146.81718895,0.00026901,2]
[313917222,1707822632157,-57.18281105,0.00026901,2]
[313917223,1707822632167,-158.57607718,0.00026959,2]
[313917224,1707822632177,-166.29,0.00027054,2]
[313917225,1707822632188,-157.52,0.00027059,2]
[313917226,1707822632198,-4450.93111177,0.00027106,2]
[313917227,1707822632210,-376.09699632,0.00027106,2]
[313917228,1707822632325,-4991.996,0.00027106,2]
[313917262,1707822638196,-395.84587954,0.00027106,2]
[313917263,1707822638209,-296.43501175,0.00027106,2]
[313917264,1707822638252,-336.15081621,0.00027106,2]
[313917265,1707822638265,-4277.46138726,0.00027106,2]
[313917266,1707822638276,-1624.19106183,0.00027106,2]
[313917267,1707822638363,-7150.89173532,0.00027106,2]
[313917268,1707822638373,-2000.0,0.00027215,2]
[313917269,1707822638385,-170.96,0.00027216,2]
[313917270,1707822638395,-150.99,0.00027216,2]
[313917271,1707822638404,-875.11,0.00027263,2]
[313917272,1707822638414,-281.99,0.00027268,2]
[313917274,1707822638424,-150.99,0.00027268,2]
[313917275,1707822638435,-636.84,0.00027281,2]
[313917276,1707822638444,-196.36475273,0.00027305,3]
[313917277,1707822638454,-297.26096394,0.00027305,3]
[313917278,1707822638465,-228.4345916,0.00027306,3]
[313917279,1707822638477,-160.01120901,0.00027306,3]
[313917280,1707822638486,-2471.0,0.000276,2]
[313917281,1707822638496,-275.13,0.00027755,2]
[313917282,1707822638505,-157.52,0.00027764,2]
[313917283,1707822638515,-5017.6231,0.00027785,2]
[313917284,1707822638525,-20034.562,0.00027785,2]
[313917285,1707822638535,-1592.6,0.00027787,2]
[313917286,1707822638545,-424.38073666,0.00027787,2]
[313917287,1707822638555,-1714.70002728,0.00027787,2]
[313917288,1707822638564,-3173.97218889,0.00027866,2]
[313917289,1707822638573,-973.07605628,0.00027883,2]
[313917290,1707822638583,-402.68003383,0.00027884,2]
[313917291,1707822638593,-6304.44583307,0.00027885,2]
[313917292,1707822638607,-7254.1029668,0.00027885,2]
[313917293,1707822638619,-541.90799385,0.00027885,2]
[313917294,1707822638644,-403.93718871,0.00027885,2]
[313917302,1707822640644,-1531.14617822,0.00027885,2]
[313917303,1707822641394,-71159.93927873,0.00027885,2]
[313917304,1707822641403,-68075.59127177,0.00027887,2]
[313917305,1707822641416,-1900.54221331,0.00027887,2]
[313917306,1707822641427,-2986.75034753,0.00027887,2]
[313917307,1707822641476,-5250.0,0.00027887,2]
[313917308,1707822641499,-7463.19073058,0.00027887,2]
[313917309,1707822641514,-1839.28732032,0.00027887,2]
[313917310,1707822641525,-1572.90815554,0.00027887,2]
[313917311,1707822641538,-1245.70852761,0.00027887,2]
[313917312,1707822641550,-1159.81592435,0.00027887,2]
[313917313,1707822641563,-354.33584849,0.00027887,2]
[313917314,1707822641592,-420.0,0.00027887,2]
[313917315,1707822641603,-16907.30392899,0.00027887,2]
[313917316,1707822641631,-430.72640198,0.00027887,2]
[313917317,1707822641643,-1007.43044093,0.00027887,2]
[313917318,1707822641676,-361.16500701,0.00027887,2]
[313917340,1707822643122,-1727.65232046,0.00027887,2]
[313917342,1707822643134,-1792.4371581,0.00027887,2]
[313917344,1707822643146,-571.45958132,0.00027887,2]
[313917349,1707822643177,-784.27818545,0.00027887,2]
[313917351,1707822643189,-319.10979718,0.00027887,2]
[313917357,1707822643233,-2404.30549132,0.00027887,2]
[313917359,1707822643244,-4096.85481884,0.00027887,2]
[313917360,1707822643461,-122329.14652892,0.00027887,2]
[313917362,1707822643471,-31846.1632,0.00027887,2]
[313917364,1707822643480,-158.57607716,0.00027949,2]
[313917366,1707822643489,-969.07959217,0.00028,2]
[313917369,1707822643499,-160.0,0.00028081,2]
[313917370,1707822643508,-3507.285189,0.00028184,14]
[313917372,1707822643517,-157.52,0.00028468,2]
[313917374,1707822643527,-1714.70002722,0.00028614,2]
[313917376,1707822643536,-424.38073662,0.00028646,2]
[313917378,1707822643546,-10645.98478105,0.00028666,2]
[313917381,1707822643556,-328.5408751,0.00028667,2]
[313917382,1707822643565,-1000.0,0.00028667,2]
[313917384,1707822643574,-612.30960758,0.000287,2]
[313917386,1707822643583,-328.54087508,0.00028736,2]
[313917388,1707822643593,-204.0,0.0002874,5]
[313917390,1707822643603,-171.00997525,0.00028757,2]
[313917392,1707822643612,-5000.0,0.00028758,2]
[313917395,1707822643621,-4194.69985085,0.00028766,4]
[313917397,1707822643631,-213.16702277,0.00028767,2]
[313917399,1707822643640,-1000.0,0.00028767,7]
[313917400,1707822643649,-422.03130012,0.00028767,2]
[313917401,1707822643659,-581.9177812,0.00028767,2]
[313917402,1707822643668,-500.0,0.00028767,2]
[313917403,1707822643677,-203.29481826,0.00028767,2]
[313917404,1707822643687,-515.22844735,0.00028767,2]
[313917405,1707822643696,-500.0,0.00028767,2]
[313917406,1707822643704,-500.0,0.00028767,2]
[313917407,1707822643714,-525.55266546,0.00028767,2]
[313917408,1707822643722,-373.29422254,0.00028767,2]
[313917409,1707822643732,-500.0,0.00028767,2]
[313917410,1707822643742,-500.0,0.00028767,2]
[313917411,1707822643751,-500.0,0.00028767,2]
[313917412,1707822643761,-500.0,0.00028767,2]
[313917413,1707822643770,-352.88724698,0.00028767,2]
[313917414,1707822643779,-500.0,0.00028767,2]
[313917415,1707822643789,-500.0,0.00028767,2]
[313917416,1707822643798,-500.0,0.00028767,2]
[313917417,1707822643807,-505.4833481,0.00028767,2]
[313917418,1707822643818,-530.5387175,0.00028767,2]
[313917419,1707822643827,-500.0,0.00028767,2]
[313917420,1707822643837,-1183.21,0.00028767,2]
[313917421,1707822643846,-586.85,0.00028767,2]
[313917422,1707822643855,-514.9,0.00028767,2]
[313917423,1707822643865,-528.74716271,0.00028767,2]
[313917424,1707822643874,-500.0,0.00028767,2]
[313917425,1707822643884,-500.0,0.00028767,2]
[313917426,1707822643893,-439.52034672,0.00028767,2]
[313917427,1707822643902,-626.64248829,0.00028767,2]
[313917428,1707822643911,-500.0,0.00028767,2]
[313917429,1707822643921,-500.0,0.00028767,2]
[313917430,1707822643930,-427.82369815,0.00028767,2]
[313917431,1707822643939,-522.47664279,0.00028767,2]
[313917432,1707822643948,-514.4970776,0.00028767,2]
[313917433,1707822643957,-500.0,0.00028767,2]
[313917434,1707822643966,-519.21240409,0.00028767,2]
[313917435,1707822643976,-500.0,0.00028767,2]
[313917436,1707822643985,-500.0,0.00028767,2]
[313917437,1707822643994,-500.0,0.00028767,2]
[313917438,1707822644004,-732.46,0.00028767,2]
[313917439,1707822644014,-500.0,0.00028767,2]
[313917440,1707822644025,-623.21219143,0.00028767,2]
[313917441,1707822644034,-500.0,0.00028767,2]
[313917442,1707822644043,-500.0,0.00028767,2]
[313917443,1707822644052,-500.0,0.00028767,2]
[313917444,1707822644063,-548.17607298,0.00028767,2]
[313917445,1707822644072,-500.0,0.00028767,2]
[313917446,1707822644082,-500.0,0.00028767,2]
[313917447,1707822644091,-541.10153896,0.00028767,2]
[313917448,1707822644101,-500.0,0.00028767,2]
[313917449,1707822644110,-218.23859595,0.00028767,2]
[313917450,1707822644119,-500.0,0.00028767,2]
[313917451,1707822644128,-554.59446415,0.00028767,2]
[313917452,1707822644138,-523.29504202,0.00028767,2]
[313917453,1707822644147,-500.0,0.00028767,2]
[313917454,1707822644156,-561.1797793,0.00028767,2]
[313917455,1707822644165,-500.0,0.00028767,2]
[313917456,1707822644175,-500.0,0.00028767,2]
[313917457,1707822644184,-500.0,0.00028767,2]
[313917458,1707822644193,-500.0,0.00028767,7]
[313917459,1707822644203,-534.89122222,0.00028767,2]
[313917460,1707822644212,-500.0,0.00028767,2]
[313917461,1707822644222,-500.0,0.00028767,2]
[313917462,1707822644231,-500.0,0.00028767,2]
[313917463,1707822644240,-518.43,0.00028767,2]
[313917464,1707822644250,-500.0,0.00028767,2]
[313917465,1707822644259,-500.0,0.00028767,2]
[313917466,1707822644268,-500.0,0.00028767,2]
[313917467,1707822644279,-500.0,0.00028767,2]
[313917468,1707822644289,-532.33721536,0.00028767,2]
[313917469,1707822644298,-602.3927958,0.00028767,2]
[313917470,1707822644307,-500.0,0.00028767,2]
[313917471,1707822644320,-500.0,0.00028767,2]
[313917472,1707822644329,-500.0,0.00028767,2]
[313917473,1707822644339,-500.0,0.00028767,2]
[313917474,1707822644348,-500.0,0.00028767,2]
[313917475,1707822644359,-233.54,0.00028767,2]
[313917476,1707822644368,-467.17416289,0.00028767,2]
[313917477,1707822644377,-500.0,0.00028767,2]
[313917478,1707822644386,-500.0,0.00028767,2]
[313917479,1707822644395,-350.44385702,0.00028767,2]
[313917480,1707822644404,-751.41,0.00028767,2]
[313917481,1707822644413,-309.26047785,0.00028767,2]
[313917482,1707822644422,-500.0,0.00028767,2]
[313917483,1707822644431,-500.0,0.00028767,2]
[313917484,1707822644440,-150.0,0.00028767,2]
[313917485,1707822644449,-170.80613312,0.00028767,2]
[313917486,1707822644458,-500.0,0.00028767,2]
[313917487,1707822644467,-500.0,0.00028767,2]
[313917488,1707822644476,-573.12406925,0.00028767,2]
[313917489,1707822644486,-500.0,0.00028767,2]
[313917490,1707822644495,-357.29545983,0.00028767,2]
[313917491,1707822644504,-500.0,0.00028767,2]
[313917492,1707822644514,-500.0,0.00028767,2]
[313917493,1707822644523,-500.0,0.00028767,2]
[313917494,1707822644532,-214.5389069,0.00028767,2]
[313917495,1707822644541,-500.0,0.00028767,2]
[313917496,1707822644551,-400.2486481,0.00028767,2]
[313917497,1707822644561,-500.0,0.00028767,2]
[313917498,1707822644571,-500.0,0.00028767,2]
[313917499,1707822644580,-500.0,0.00028767,2]
[313917500,1707822644589,-500.0,0.00028767,2]
[313917501,1707822644598,-500.0,0.00028767,2]
[313917502,1707822644608,-553.88426579,0.00028767,2]
[313917503,1707822644617,-500.0,0.00028767,2]
[313917504,1707822644627,-539.94177101,0.00028767,2]
[313917505,1707822644637,-531.93429366,0.00028767,2]
[313917506,1707822644647,-547.25845942,0.00028767,2]
[313917507,1707822644656,-500.0,0.00028767,2]
[313917508,1707822644666,-434.72808478,0.00028767,2]
[313917509,1707822644676,-529.47175707,0.00028767,2]
[313917510,1707822644686,-581.80419305,0.00028767,2]
[313917511,1707822644695,-500.0,0.00028767,2]
[313917512,1707822644705,-500.0,0.00028767,2]
[313917513,1707822644714,-504.54555997,0.00028767,2]
[313917514,1707822644723,-500.0,0.00028767,2]
[313917515,1707822644732,-570.94235557,0.00028767,2]
[313917516,1707822644742,-500.0,0.00028767,2]
[313917517,1707822644752,-500.0,0.00028767,2]
[313917518,1707822644761,-500.0,0.00028767,2]
[313917519,1707822644771,-500.0,0.00028767,2]
[313917520,1707822644780,-529.78529003,0.00028767,2]
[313917521,1707822644790,-571.20918759,0.00028767,2]
[313917522,1707822644799,-500.0,0.00028767,2]
[313917523,1707822644809,-511.15686662,0.00028767,2]
[313917524,1707822644819,-514.1186548,0.00028767,2]
[313917525,1707822644828,-500.0,0.00028767,2]
[313917526,1707822644838,-263.56543351,0.00028767,2]
[313917527,1707822644849,-543.99501572,0.00028767,2]
[313917528,1707822644858,-519.45763063,0.00028767,2]
[313917529,1707822644868,-534.97084919,0.00028767,2]
[313917530,1707822644878,-500.0,0.00028767,2]
[313917531,1707822644887,-514.19286626,0.00028767,2]
[313917532,1707822644896,-516.78000685,0.00028767,2]
[313917533,1707822644905,-500.0,0.00028767,2]
[313917534,1707822644915,-500.0,0.00028767,2]
[313917535,1707822644924,-215.64737407,0.00028767,2]
[313917536,1707822644933,-500.0,0.00028767,2]
[313917537,1707822644943,-557.00971417,0.00028767,2]
[313917538,1707822644952,-500.0,0.00028767,2]
[313917539,1707822644961,-542.55336438,0.00028767,2]
[313917540,1707822644970,-500.0,0.00028767,2]
[313917541,1707822644979,-500.0,0.00028767,2]
[313917542,1707822644989,-500.0,0.00028767,2]
[313917543,1707822644998,-285.45441145,0.00028767,2]
[313917544,1707822645007,-500.0,0.00028767,2]
[313917545,1707822645018,-548.24309128,0.00028767,2]
[313917546,1707822645029,-500.0,0.00028767,2]
[313917547,1707822645038,-500.0,0.00028767,2]
[313917548,1707822645047,-500.0,0.00028767,2]
[313917549,1707822645057,-500.0,0.00028767,2]
[313917550,1707822645068,-500.0,0.00028767,2]
[313917551,1707822645077,-500.0,0.00028767,2]
[313917552,1707822645087,-500.0,0.00028767,2]
[313917553,1707822645098,-500.0,0.00028767,2]
[313917554,1707822645107,-507.68,0.00028767,2]
[313917555,1707822645116,-284.82058849,0.00028767,2]
[313917556,1707822645125,-1069.77,0.00028767,2]
[313917557,1707822645134,-528.11375289,0.00028767,2]
[313917558,1707822645144,-500.0,0.00028767,2]
[313917559,1707822645153,-500.0,0.00028767,2]
[313917560,1707822645162,-1538.53,0.00028767,2]
[313917561,1707822645171,-589.60876854,0.00028767,2]
[313917562,1707822645180,-500.0,0.00028767,2]
[313917563,1707822645190,-500.0,0.00028767,2]
[313917564,1707822645199,-500.0,0.00028767,2]
[313917565,1707822645208,-500.0,0.00028767,2]
[313917566,1707822645217,-500.0,0.00028767,2]
[313917567,1707822645226,-547.60260193,0.00028767,2]
[313917568,1707822645235,-500.0,0.00028767,2]
[313917569,1707822645244,-500.0,0.00028767,2]
[313917570,1707822645253,-500.0,0.00028767,2]
[313917571,1707822645263,-500.0,0.00028767,2]
[313917572,1707822645273,-871.32,0.00028767,2]
[313917573,1707822645283,-500.0,0.00028767,2]
[313917574,1707822645293,-500.0,0.00028767,2]
[313917575,1707822645302,-745.09,0.00028767,2]
[313917576,1707822645312,-711.9,0.00028767,2]
[313917577,1707822645321,-500.0,0.00028767,2]
[313917578,1707822645331,-500.0,0.00028767,2]
[313917579,1707822645340,-500.0,0.00028767,2]
[313917580,1707822645350,-500.0,0.00028767,2]
[313917581,1707822645360,-500.0,0.00028767,2]
[313917582,1707822645369,-500.0,0.00028767,2]
[313917583,1707822645378,-500.0,0.00028767,2]
[313917584,1707822645387,-500.0,0.00028767,2]
[313917585,1707822645397,-500.0,0.00028767,2]
[313917586,1707822645406,-500.0,0.00028767,2]
[313917587,1707822645416,-500.0,0.00028767,2]
[313917588,1707822645425,-500.0,0.00028767,2]
[313917589,1707822645434,-500.0,0.00028767,2]
[313917590,1707822645443,-500.0,0.00028767,2]
[313917591,1707822645453,-500.0,0.00028767,2]
[313917592,1707822645462,-1629.96,0.00028767,2]
[313917593,1707822645472,-500.0,0.00028767,2]
[313917594,1707822645482,-565.64503842,0.00028767,2]
[313917595,1707822645491,-1583.97,0.00028767,2]
[313917596,1707822645500,-500.0,0.00028767,2]
[313917597,1707822645510,-590.53,0.00028767,2]
[313917598,1707822645519,-1955.18,0.00028767,2]
[313917599,1707822645528,-500.0,0.00028767,2]
[313917600,1707822645540,-500.0,0.00028767,2]
[313917601,1707822645553,-500.0,0.00028767,2]
[313917602,1707822645563,-500.0,0.00028767,2]
[313917603,1707822645572,-1826.5,0.00028767,2]
[313917604,1707822645582,-892.4,0.00028767,2]